[Event "*** SCC Grand Prix: Titled Tuesday Blitz"]
[Site "Chess.com"]
[Date "2020.09.08"]
[Round "8"]
[White "sokidze"]
[Black "chenxiaoyuer"]
[Result "1/2-1/2"]
[WhiteElo "2610"]
[BlackElo "2474"]
[TimeControl "180+1"]
[EndTime "11:37:47 PDT"]
[Termination "Game drawn - insufficient material"]

1. e4 {[%clk 0:03:00.9]} 1... c5 {[%clk 0:02:59.6]} 2. Nf3 {[%clk 0:03:00.9]}
2... d6 {[%clk 0:02:59.7]} 3. d4 {[%clk 0:03:01.6]} 3... cxd4 {[%clk 0:03:00.2]}
4. Nxd4 {[%clk 0:03:02.5]} 4... Nf6 {[%clk 0:03:00.1]} 5. Nc3 {[%clk 0:03:03.1]}
5... Nc6 {[%clk 0:02:59.9]} 6. g3 {[%clk 0:03:03.1]} 6... g6 {[%clk 0:02:59]} 7.
Nxc6 {[%clk 0:03:02.8]} 7... bxc6 {[%clk 0:02:38.5]} 8. Bg2 {[%clk 0:03:01.5]}
8... Qc7 {[%clk 0:02:22.2]} 9. O-O {[%clk 0:02:38.5]} 9... Bg7 {[%clk
0:02:21.6]} 10. Bf4 {[%clk 0:02:21.9]} 10... O-O {[%clk 0:02:19.1]} 11. Qd2
{[%clk 0:02:16.1]} 11... Rb8 {[%clk 0:02:12.3]} 12. Rab1 {[%clk 0:02:13.1]}
12... Qa5 {[%clk 0:02:04.5]} 13. Rfe1 {[%clk 0:01:59.7]} 13... Nh5 {[%clk
0:02:00.4]} 14. b4 {[%clk 0:01:33.3]} 14... Qc7 {[%clk 0:01:15]} 15. Be3 {[%clk
0:01:27.5]} 15... Be6 {[%clk 0:01:13.4]} 16. a3 {[%clk 0:01:24.4]} 16... Bc4
{[%clk 0:00:54.9]} 17. Bd4 {[%clk 0:01:21.5]} 17... e5 {[%clk 0:00:49.7]} 18.
Be3 {[%clk 0:01:16.5]} 18... Nf6 {[%clk 0:00:48.7]} 19. Rbd1 {[%clk 0:01:14.4]}
19... Rfd8 {[%clk 0:00:42]} 20. Bg5 {[%clk 0:01:12.4]} 20... a5 {[%clk 0:00:38]}
21. bxa5 {[%clk 0:00:48.6]} 21... Qxa5 {[%clk 0:00:30.9]} 22. Bxf6 {[%clk
0:00:45.5]} 22... Bxf6 {[%clk 0:00:30.2]} 23. Nd5 {[%clk 0:00:46.1]} 23... Qxd2
{[%clk 0:00:29.9]} 24. Nxf6+ {[%clk 0:00:45.7]} 24... Kg7 {[%clk 0:00:30.2]} 25.
Nh5+ {[%clk 0:00:39.4]} 25... gxh5 {[%clk 0:00:29.8]} 26. Rxd2 {[%clk
0:00:39.3]} 26... Kf6 {[%clk 0:00:28.4]} 27. h4 {[%clk 0:00:35]} 27... Be6
{[%clk 0:00:25.9]} 28. Re3 {[%clk 0:00:28.9]} 28... Rb1+ {[%clk 0:00:22.9]} 29.
Kh2 {[%clk 0:00:28.8]} 29... Ke7 {[%clk 0:00:22.4]} 30. Rc3 {[%clk 0:00:27.1]}
30... c5 {[%clk 0:00:21.8]} 31. Bf3 {[%clk 0:00:25.2]} 31... Bg4 {[%clk
0:00:21.3]} 32. Kg2 {[%clk 0:00:23.5]} 32... Rdb8 {[%clk 0:00:17.2]} 33. Rcd3
{[%clk 0:00:18.5]} 33... R8b6 {[%clk 0:00:14.3]} 34. Bxg4 {[%clk 0:00:13.7]}
34... hxg4 {[%clk 0:00:14.4]} 35. f3 {[%clk 0:00:14.6]} 35... h5 {[%clk
0:00:13.4]} 36. fxg4 {[%clk 0:00:12.2]} 36... hxg4 {[%clk 0:00:14.3]} 37. Re3
{[%clk 0:00:11.4]} 37... Ra1 {[%clk 0:00:14]} 38. Kf2 {[%clk 0:00:08.4]} 38...
Rbb1 {[%clk 0:00:13.8]} 39. Ke2 {[%clk 0:00:05.8]} 39... c4 {[%clk 0:00:13.2]}
40. Kf2 {[%clk 0:00:03.1]} 40... Rf1+ {[%clk 0:00:13]} 41. Kg2 {[%clk
0:00:03.5]} 41... Rg1+ {[%clk 0:00:12.9]} 42. Kf2 {[%clk 0:00:03.8]} 42... Raf1+
{[%clk 0:00:08.4]} 43. Ke2 {[%clk 0:00:04.2]} 43... Rf6 {[%clk 0:00:04.6]} 44.
Rd1 {[%clk 0:00:03]} 44... Rg2+ {[%clk 0:00:04.1]} 45. Ke1 {[%clk 0:00:03.2]}
45... Rxc2 {[%clk 0:00:03.8]} 46. a4 {[%clk 0:00:02.4]} 46... Ra2 {[%clk
0:00:03.7]} 47. Rc3 {[%clk 0:00:01.8]} 47... Rxa4 {[%clk 0:00:04.1]} 48. Rdc1
{[%clk 0:00:02.5]} 48... Rf3 {[%clk 0:00:03.9]} 49. Rxf3 {[%clk 0:00:02.5]}
49... gxf3 {[%clk 0:00:04.8]} 50. Kf2 {[%clk 0:00:03.4]} 50... Ke6 {[%clk
0:00:05.2]} 51. Kxf3 {[%clk 0:00:03.9]} 51... d5 {[%clk 0:00:05.5]} 52. exd5+
{[%clk 0:00:04.7]} 52... Kxd5 {[%clk 0:00:06.4]} 53. h5 {[%clk 0:00:05.6]} 53...
Ra8 {[%clk 0:00:06]} 54. Ke3 {[%clk 0:00:04.5]} 54... Rh8 {[%clk 0:00:05.6]} 55.
g4 {[%clk 0:00:04.4]} 55... f5 {[%clk 0:00:05.6]} 56. gxf5 {[%clk 0:00:04]}
56... Rxh5 {[%clk 0:00:05.9]} 57. Rd1+ {[%clk 0:00:04.9]} 57... Kc5 {[%clk
0:00:05.4]} 58. Ke4 {[%clk 0:00:05.8]} 58... Rh8 {[%clk 0:00:04.8]} 59. Kxe5
{[%clk 0:00:05.9]} 59... Re8+ {[%clk 0:00:05.4]} 60. Kf6 {[%clk 0:00:06.5]}
60... Kb4 {[%clk 0:00:05.5]} 61. Kf7 {[%clk 0:00:06.8]} 61... Ra8 {[%clk
0:00:05.8]} 62. f6 {[%clk 0:00:07.3]} 62... c3 {[%clk 0:00:06]} 63. Kg7 {[%clk
0:00:06.2]} 63... Kb3 {[%clk 0:00:06.2]} 64. f7 {[%clk 0:00:06]} 64... c2 {[%clk
0:00:06.5]} 65. Re1 {[%clk 0:00:05.9]} 65... Ra7 {[%clk 0:00:06.4]} 66. Kg8
{[%clk 0:00:04.6]} 66... Rxf7 {[%clk 0:00:06.9]} 67. Kxf7 {[%clk 0:00:05.1]}
67... Kb2 {[%clk 0:00:07.8]} 68. Re2 {[%clk 0:00:05.1]} 68... Kb1 {[%clk
0:00:08.2]} 69. Rxc2 {[%clk 0:00:04.1]} 69... Kxc2 {[%clk 0:00:09.1]} 1/2-1/2

[Event "*** SCC Grand Prix: Titled Tuesday Blitz"]
[Site "Chess.com"]
[Date "2020.09.08"]
[Round "8"]
[White "gmpeter008"]
[Black "ehrenfeld"]
[Result "1/2-1/2"]
[WhiteElo "2379"]
[BlackElo "2557"]
[TimeControl "180+1"]
[EndTime "11:37:49 PDT"]
[Termination "Game drawn - timeout vs insufficient material"]

1. d4 {[%clk 0:03:00.9]} 1... f5 {[%clk 0:02:57.5]} 2. Nf3 {[%clk 0:02:59.9]}
2... Nf6 {[%clk 0:02:57.3]} 3. c4 {[%clk 0:03:00.1]} 3... d6 {[%clk 0:02:55.3]}
4. Nc3 {[%clk 0:03:00.6]} 4... g6 {[%clk 0:02:52.4]} 5. g3 {[%clk 0:03:00.8]}
5... Bg7 {[%clk 0:02:51.8]} 6. Bg2 {[%clk 0:03:01.1]} 6... O-O {[%clk
0:02:52.4]} 7. O-O {[%clk 0:03:01.6]} 7... c6 {[%clk 0:02:51.7]} 8. b3 {[%clk
0:03:01.7]} 8... Na6 {[%clk 0:02:50.1]} 9. Bb2 {[%clk 0:03:00.1]} 9... Qc7
{[%clk 0:02:49.7]} 10. Rc1 {[%clk 0:02:59.5]} 10... e5 {[%clk 0:02:49.1]} 11.
dxe5 {[%clk 0:02:47.2]} 11... dxe5 {[%clk 0:02:48.7]} 12. Nb5 {[%clk 0:02:14]}
12... Qe7 {[%clk 0:02:43.2]} 13. Ba3 {[%clk 0:02:08.8]} 13... Nb4 {[%clk
0:02:42.8]} 14. Qd6 {[%clk 0:01:41]} 14... Qxd6 {[%clk 0:02:41.3]} 15. Nxd6
{[%clk 0:01:40.4]} 15... a5 {[%clk 0:01:53.8]} 16. Nxe5 {[%clk 0:01:38.9]} 16...
Nxa2 {[%clk 0:01:47.8]} 17. Ra1 {[%clk 0:01:35.7]} 17... Nc3 {[%clk 0:01:45.8]}
18. Rfe1 {[%clk 0:01:26.1]} 18... Nce4 {[%clk 0:01:38]} 19. Rad1 {[%clk
0:00:49.4]} 19... Nxd6 {[%clk 0:01:31]} 20. Bxd6 {[%clk 0:00:50.3]} 20... Re8
{[%clk 0:01:30.8]} 21. Nxc6 {[%clk 0:00:48.3]} 21... bxc6 {[%clk 0:01:24.3]} 22.
Bxc6 {[%clk 0:00:47.7]} 22... Be6 {[%clk 0:01:23.1]} 23. Be5 {[%clk 0:00:45.1]}
23... Ne4 {[%clk 0:01:13.3]} 24. Bxg7 {[%clk 0:00:36.5]} 24... Kxg7 {[%clk
0:01:13.2]} 25. Ra1 {[%clk 0:00:36.5]} 25... Nc5 {[%clk 0:00:59.6]} 26. b4
{[%clk 0:00:33.6]} 26... Nb3 {[%clk 0:00:55.5]} 27. Ra4 {[%clk 0:00:28.1]} 27...
Bxc4 {[%clk 0:00:48.5]} 28. bxa5 {[%clk 0:00:24.8]} 28... Bf7 {[%clk 0:00:33.8]}
29. Rb1 {[%clk 0:00:15.8]} 29... Nc5 {[%clk 0:00:16]} 30. Ra3 {[%clk 0:00:12]}
30... Reb8 {[%clk 0:00:14.6]} 31. Rc1 {[%clk 0:00:10.7]} 31... Ra6 {[%clk
0:00:13.5]} 32. Rxc5 {[%clk 0:00:10.2]} 32... Rxc6 {[%clk 0:00:13.1]} 33. Rxc6
{[%clk 0:00:09.9]} 33... Rb1+ {[%clk 0:00:13]} 34. Kg2 {[%clk 0:00:10.4]} 34...
Bd5+ {[%clk 0:00:13]} 35. f3 {[%clk 0:00:11.1]} 35... Bxc6 {[%clk 0:00:13.1]}
36. a6 {[%clk 0:00:12]} 36... Ba8 {[%clk 0:00:12.2]} 37. a7 {[%clk 0:00:11.8]}
37... Rd1 {[%clk 0:00:11.5]} 38. Kf2 {[%clk 0:00:12]} 38... Rd8 {[%clk
0:00:10.9]} 39. Ke3 {[%clk 0:00:08.8]} 39... Kf7 {[%clk 0:00:11.4]} 40. Kf4
{[%clk 0:00:08.8]} 40... Kf6 {[%clk 0:00:10.6]} 41. h4 {[%clk 0:00:08.7]} 41...
Rd4+ {[%clk 0:00:09]} 42. Ke3 {[%clk 0:00:08.8]} 42... Rb4 {[%clk 0:00:08.6]}
43. Ra6+ {[%clk 0:00:07.7]} 43... Ke7 {[%clk 0:00:08.5]} 44. h5 {[%clk
0:00:04.7]} 44... Rb7 {[%clk 0:00:08.1]} 45. hxg6 {[%clk 0:00:04.2]} 45... hxg6
{[%clk 0:00:07.7]} 46. Rxg6 {[%clk 0:00:04.8]} 46... Kf7 {[%clk 0:00:07.5]} 47.
Ra6 {[%clk 0:00:04.7]} 47... Ke7 {[%clk 0:00:07.7]} 48. Kf4 {[%clk 0:00:05.2]}
48... Rb5 {[%clk 0:00:05.1]} 49. e4 {[%clk 0:00:03.7]} 49... fxe4 {[%clk
0:00:03.9]} 50. fxe4 {[%clk 0:00:04.6]} 50... Rb4 {[%clk 0:00:04.1]} 51. Kf5
{[%clk 0:00:04.9]} 51... Rxe4 {[%clk 0:00:03.9]} 52. g4 {[%clk 0:00:05.1]} 52...
Re3 {[%clk 0:00:03.2]} 53. g5 {[%clk 0:00:05.2]} 53... Rf3+ {[%clk 0:00:03.6]}
54. Kg4 {[%clk 0:00:04.9]} 54... Rf8 {[%clk 0:00:02.5]} 55. g6 {[%clk 0:00:05]}
55... Rg8 {[%clk 0:00:02.1]} 56. Kg5 {[%clk 0:00:05.3]} 56... Rc8 {[%clk
0:00:02.5]} 57. Rf6 {[%clk 0:00:03.1]} 57... Rc5+ {[%clk 0:00:01.4]} 58. Rf5
{[%clk 0:00:03.5]} 58... Rxf5+ {[%clk 0:00:01.9]} 59. Kxf5 {[%clk 0:00:03.9]}
59... Kf8 {[%clk 0:00:02.7]} 60. Kg5 {[%clk 0:00:02]} 60... Kg8 {[%clk
0:00:03.2]} 61. Kf6 {[%clk 0:00:02.3]} 61... Bb7 {[%clk 0:00:03]} 1/2-1/2

[Event "*** SCC Grand Prix: Titled Tuesday Blitz"]
[Site "Chess.com"]
[Date "2020.09.08"]
[Round "8"]
[White "evgenyermolaev"]
[Black "kasparicy"]
[Result "0-1"]
[WhiteElo "2422"]
[BlackElo "2331"]
[TimeControl "180+1"]
[EndTime "11:37:49 PDT"]
[Termination "kasparicy won on time"]

1. e4 {[%clk 0:03:00.9]} 1... c5 {[%clk 0:02:14.2]} 2. b4 {[%clk 0:02:59.2]}
2... cxb4 {[%clk 0:02:13.8]} 3. a3 {[%clk 0:02:59.3]} 3... d5 {[%clk 0:02:14.7]}
4. exd5 {[%clk 0:02:48.4]} 4... Qxd5 {[%clk 0:02:15.6]} 5. Nf3 {[%clk
0:02:48.7]} 5... e5 {[%clk 0:02:14.6]} 6. axb4 {[%clk 0:02:42.2]} 6... Bxb4
{[%clk 0:02:11]} 7. Bb2 {[%clk 0:02:35.6]} 7... Nc6 {[%clk 0:02:09.9]} 8. Nc3
{[%clk 0:02:34.5]} 8... Bxc3 {[%clk 0:01:56.2]} 9. Bxc3 {[%clk 0:02:34.5]} 9...
Nf6 {[%clk 0:01:56.7]} 10. Ra4 {[%clk 0:02:31.8]} 10... O-O {[%clk 0:01:52.3]}
11. Bc4 {[%clk 0:02:31.6]} 11... Qd6 {[%clk 0:01:42]} 12. O-O {[%clk 0:02:29.2]}
12... Bg4 {[%clk 0:01:41.5]} 13. Be2 {[%clk 0:02:20.3]} 13... Bh5 {[%clk
0:01:40.2]} 14. Nxe5 {[%clk 0:01:42.7]} 14... Bxe2 {[%clk 0:01:35.4]} 15. Qxe2
{[%clk 0:01:43.6]} 15... Rfe8 {[%clk 0:01:33]} 16. Qd3 {[%clk 0:01:14.7]} 16...
Qxd3 {[%clk 0:01:26.5]} 17. Nxd3 {[%clk 0:01:14.3]} 17... Nd5 {[%clk 0:01:27.2]}
18. Bb2 {[%clk 0:00:51.5]} 18... a5 {[%clk 0:01:23.5]} 19. Rg4 {[%clk
0:00:19.1]} 19... g6 {[%clk 0:01:17.7]} 20. c4 {[%clk 0:00:13.6]} 20... Ndb4
{[%clk 0:01:12.7]} 21. Nf4 {[%clk 0:00:11.3]} 21... Rad8 {[%clk 0:01:07.2]} 22.
Nh5 {[%clk 0:00:11.2]} 22... f5 {[%clk 0:00:47.6]} 23. Nf6+ {[%clk 0:00:08.6]}
23... Kf7 {[%clk 0:00:47.8]} 24. Rh4 {[%clk 0:00:09]} 24... h5 {[%clk
0:00:32.9]} 25. Nxe8 {[%clk 0:00:09]} 25... Kxe8 {[%clk 0:00:29.7]} 26. d4
{[%clk 0:00:07.3]} 26... Kf7 {[%clk 0:00:18.9]} 27. d5 {[%clk 0:00:07.3]} 27...
Ne7 {[%clk 0:00:15.3]} 28. Bc3 {[%clk 0:00:07.4]} 28... Rc8 {[%clk 0:00:13.7]}
29. Bxb4 {[%clk 0:00:05.6]} 29... axb4 {[%clk 0:00:13.8]} 30. Rb1 {[%clk
0:00:06.5]} 30... b5 {[%clk 0:00:12.1]} 31. Rxb4 {[%clk 0:00:05.4]} 31... Nxd5
{[%clk 0:00:10.3]} 32. Rxb5 {[%clk 0:00:04.1]} 32... Nc3 {[%clk 0:00:10.8]} 33.
Rb7+ {[%clk 0:00:02.8]} 33... Kf6 {[%clk 0:00:11.1]} 34. Kf1 {[%clk 0:00:03.2]}
34... Ne4 {[%clk 0:00:10.8]} 35. f3 {[%clk 0:00:02.9]} 35... Nd2+ {[%clk
0:00:09.7]} 36. Ke2 {[%clk 0:00:03.4]} 36... Nxc4 {[%clk 0:00:10.5]} 37. Rb4
{[%clk 0:00:03.9]} 37... Ne5 {[%clk 0:00:10.3]} 38. Rhd4 {[%clk 0:00:04]} 38...
Rc2+ {[%clk 0:00:09.6]} 39. Kd1 {[%clk 0:00:03.9]} 39... Rxg2 {[%clk 0:00:09.2]}
40. Rb6+ {[%clk 0:00:03.5]} 40... Kg7 {[%clk 0:00:09.5]} 41. f4 {[%clk
0:00:03.1]} 41... Nf3 {[%clk 0:00:09.1]} 42. Rd7+ {[%clk 0:00:02.6]} 42... Kh6
{[%clk 0:00:08.9]} 43. Rdd6 {[%clk 0:00:03.5]} 43... h4 {[%clk 0:00:07.3]} 44.
Rd7 {[%clk 0:00:02.8]} 44... Kh5 {[%clk 0:00:07.1]} 45. Rg7 {[%clk 0:00:02.1]}
45... h3 {[%clk 0:00:06.7]} 46. Rh7+ {[%clk 0:00:02.1]} 46... Kg4 {[%clk
0:00:06.6]} 47. Rxg6+ {[%clk 0:00:02.6]} 47... Kxf4 {[%clk 0:00:07]} 48. Rf6
{[%clk 0:00:02.4]} 48... Nxh2 {[%clk 0:00:05.4]} 49. Rxh3 {[%clk 0:00:01.7]}
49... Ng4 {[%clk 0:00:05.9]} 50. Rf7 {[%clk 0:00:01.7]} 50... Ne3+ {[%clk
0:00:05.4]} 51. Kc1 {[%clk 0:00:01.7]} 51... Ng4 {[%clk 0:00:05.4]} 52. Rh4
{[%clk 0:00:01.8]} 52... Ke4 {[%clk 0:00:05.3]} 53. Rhh7 {[%clk 0:00:02.2]}
53... f4 {[%clk 0:00:05.4]} 54. Re7+ {[%clk 0:00:03.1]} 54... Kf3 {[%clk
0:00:05.7]} 55. Rhf7 {[%clk 0:00:03.7]} 55... Ne3 {[%clk 0:00:05.3]} 56. Kb1
{[%clk 0:00:03.4]} 56... Rd2 {[%clk 0:00:04.9]} 57. Re6 {[%clk 0:00:03.1]} 57...
Rd4 {[%clk 0:00:05]} 58. Ref6 {[%clk 0:00:03.3]} 58... Kg3 {[%clk 0:00:05.1]}
59. Rxf4 {[%clk 0:00:02.9]} 59... Rxf4 {[%clk 0:00:04.9]} 60. Rf5 {[%clk
0:00:03.3]} 60... Rxf5 {[%clk 0:00:04.4]} 0-1

[Event "*** SCC Grand Prix: Titled Tuesday Blitz"]
[Site "Chess.com"]
[Date "2020.09.08"]
[Round "8"]
[White "vinniethepooh"]
[Black "jeetjain"]
[Result "0-1"]
[WhiteElo "2641"]
[BlackElo "2450"]
[TimeControl "180+1"]
[EndTime "11:37:52 PDT"]
[Termination "jeetjain won by resignation"]

1. Nf3 {[%clk 0:03:00.4]} 1... d5 {[%clk 0:02:58.7]} 2. g3 {[%clk 0:03:00.2]}
2... c5 {[%clk 0:02:58.4]} 3. Bg2 {[%clk 0:03:00.2]} 3... Nc6 {[%clk 0:02:58.7]}
4. O-O {[%clk 0:02:56.5]} 4... e5 {[%clk 0:02:58.8]} 5. d3 {[%clk 0:02:56.7]}
5... Be7 {[%clk 0:02:58.8]} 6. Nbd2 {[%clk 0:02:52.4]} 6... h5 {[%clk
0:02:58.7]} 7. e4 {[%clk 0:02:50.2]} 7... d4 {[%clk 0:02:58.6]} 8. h4 {[%clk
0:02:48.1]} 8... Bg4 {[%clk 0:02:50.2]} 9. a3 {[%clk 0:02:34.7]} 9... g5 {[%clk
0:02:42.3]} 10. hxg5 {[%clk 0:02:33]} 10... h4 {[%clk 0:02:36.7]} 11. gxh4
{[%clk 0:02:30.1]} 11... Rxh4 {[%clk 0:02:35.2]} 12. Qe1 {[%clk 0:02:30]} 12...
Rh8 {[%clk 0:02:28.1]} 13. Nc4 {[%clk 0:01:52.9]} 13... Bxf3 {[%clk 0:02:23.1]}
14. Bxf3 {[%clk 0:01:53.2]} 14... Bxg5 {[%clk 0:02:16]} 15. Kg2 {[%clk
0:01:33.5]} 15... Qf6 {[%clk 0:01:37.1]} 16. Rh1 {[%clk 0:01:27]} 16... Bh4
{[%clk 0:01:30.2]} 17. b4 {[%clk 0:01:02.9]} 17... Nge7 {[%clk 0:01:16]} 18.
bxc5 {[%clk 0:00:28.1]} 18... O-O-O {[%clk 0:01:03.8]} 19. Qe2 {[%clk
0:00:10.7]} 19... Rdg8+ {[%clk 0:00:40.6]} 20. Kf1 {[%clk 0:00:10.1]} 20... Bg5
{[%clk 0:00:32.7]} 21. Rxh8 {[%clk 0:00:04.7]} 21... Qxh8 {[%clk 0:00:32.4]} 22.
Bxg5 {[%clk 0:00:03.7]} 22... Rxg5 {[%clk 0:00:31.3]} 23. Qd2 {[%clk 0:00:03.6]}
23... Qh3+ {[%clk 0:00:18.6]} 24. Ke2 {[%clk 0:00:03.7]} 24... Rg6 {[%clk
0:00:17.1]} 25. Rh1 {[%clk 0:00:03.3]} 25... Qe6 {[%clk 0:00:16.8]} 26. Nd6+
{[%clk 0:00:02.7]} 26... Kc7 {[%clk 0:00:16.2]} 27. Rh8 {[%clk 0:00:03]} 27...
Nd8 {[%clk 0:00:16]} 28. Ne8+ {[%clk 0:00:02.9]} 28... Kc8 {[%clk 0:00:13.4]}
29. Qb4 {[%clk 0:00:03.8]} 29... Nec6 {[%clk 0:00:12.6]} 30. Nd6+ {[%clk
0:00:03.7]} 30... Qxd6 {[%clk 0:00:08.7]} 31. cxd6 {[%clk 0:00:04.6]} 31... Nxb4
{[%clk 0:00:08.9]} 32. axb4 {[%clk 0:00:05.2]} 32... Rxd6 {[%clk 0:00:09.1]} 33.
Bg4+ {[%clk 0:00:05.9]} 33... Kc7 {[%clk 0:00:09.4]} 34. Re8 {[%clk 0:00:04.3]}
34... f6 {[%clk 0:00:08.7]} 35. b5 {[%clk 0:00:02.9]} 35... Kb6 {[%clk
0:00:07.7]} 36. f4 {[%clk 0:00:02.7]} 36... exf4 {[%clk 0:00:06.9]} 37. Kf3
{[%clk 0:00:02]} 37... Kxb5 {[%clk 0:00:07.3]} 38. Kxf4 {[%clk 0:00:02.3]} 38...
a5 {[%clk 0:00:07.8]} 39. e5 {[%clk 0:00:02.3]} 39... fxe5+ {[%clk 0:00:07.9]}
40. Kxe5 {[%clk 0:00:02.7]} 40... Nf7+ {[%clk 0:00:06.7]} 41. Ke4 {[%clk
0:00:02.4]} 41... a4 {[%clk 0:00:07.1]} 42. Re7 {[%clk 0:00:01.4]} 42... Nd8
{[%clk 0:00:02.2]} 43. Rd7 {[%clk 0:00:01.8]} 43... Rxd7 {[%clk 0:00:02]} 44.
Bxd7+ {[%clk 0:00:02.7]} 44... Kb4 {[%clk 0:00:02.9]} 45. Kxd4 {[%clk
0:00:03.4]} 45... a3 {[%clk 0:00:02.9]} 46. c3+ {[%clk 0:00:03.6]} 46... Kb3
{[%clk 0:00:01.6]} 47. Be6+ {[%clk 0:00:02.9]} 47... Nxe6+ {[%clk 0:00:01.2]}
48. Ke5 {[%clk 0:00:03.8]} 48... a2 {[%clk 0:00:02.1]} 49. d4 {[%clk 0:00:04.7]}
49... a1=Q {[%clk 0:00:03]} 50. d5 {[%clk 0:00:05.6]} 50... Qxc3+ {[%clk
0:00:03.1]} 51. Kxe6 {[%clk 0:00:05.4]} 51... Qd3 {[%clk 0:00:04]} 52. d6 {[%clk
0:00:05.5]} 52... b5 {[%clk 0:00:04.9]} 53. d7 {[%clk 0:00:05.7]} 53... b4
{[%clk 0:00:05.8]} 54. d8=Q {[%clk 0:00:04.4]} 54... Qxd8 {[%clk 0:00:05.7]} 0-1

[Event "*** SCC Grand Prix: Titled Tuesday Blitz"]
[Site "Chess.com"]
[Date "2020.09.08"]
[Round "8"]
[White "anon569"]
[Black "WPWPWP-2015"]
[Result "1-0"]
[WhiteElo "2254"]
[BlackElo "2413"]
[TimeControl "180+1"]
[EndTime "11:38:12 PDT"]
[Termination "anon569 won by checkmate"]

1. e4 {[%clk 0:03:00.9]} 1... c5 {[%clk 0:02:58.1]} 2. Nf3 {[%clk 0:03:00.4]}
2... d6 {[%clk 0:02:58.1]} 3. d4 {[%clk 0:02:58.4]} 3... cxd4 {[%clk 0:02:58.3]}
4. Nxd4 {[%clk 0:02:57.1]} 4... Nf6 {[%clk 0:02:58.8]} 5. Nc3 {[%clk 0:02:55.9]}
5... a6 {[%clk 0:02:59.4]} 6. Bg5 {[%clk 0:02:54.7]} 6... e6 {[%clk 0:02:59]} 7.
f4 {[%clk 0:02:53.6]} 7... Qb6 {[%clk 0:02:59.1]} 8. a3 {[%clk 0:02:46.6]} 8...
Be7 {[%clk 0:02:57.2]} 9. Qd3 {[%clk 0:02:16.3]} 9... Nc6 {[%clk 0:02:56]} 10.
Nxc6 {[%clk 0:01:49.5]} 10... bxc6 {[%clk 0:02:45.4]} 11. O-O-O {[%clk
0:01:02.3]} 11... Rb8 {[%clk 0:02:42.1]} 12. Na4 {[%clk 0:00:57.9]} 12... Qb5
{[%clk 0:02:39.3]} 13. Qd4 {[%clk 0:00:55.8]} 13... Qa5 {[%clk 0:02:22.6]} 14.
e5 {[%clk 0:00:34.3]} 14... dxe5 {[%clk 0:02:19.1]} 15. fxe5 {[%clk 0:00:33.7]}
15... c5 {[%clk 0:02:04.4]} 16. Qh4 {[%clk 0:00:21.4]} 16... Nd5 {[%clk
0:01:48.4]} 17. Bxe7 {[%clk 0:00:20]} 17... Nxe7 {[%clk 0:01:47.8]} 18. Nc3
{[%clk 0:00:19.4]} 18... Nf5 {[%clk 0:01:43]} 19. Qf4 {[%clk 0:00:12]} 19... O-O
{[%clk 0:01:41.6]} 20. Ne4 {[%clk 0:00:08.6]} 20... Qb6 {[%clk 0:01:33.6]} 21.
b3 {[%clk 0:00:08.2]} 21... c4 {[%clk 0:01:27.6]} 22. Bxc4 {[%clk 0:00:07.1]}
22... Qe3+ {[%clk 0:01:23.8]} 23. Qxe3 {[%clk 0:00:05.3]} 23... Nxe3 {[%clk
0:01:24.7]} 24. Rd4 {[%clk 0:00:05.3]} 24... Bb7 {[%clk 0:01:20]} 25. Nd6 {[%clk
0:00:05.2]} 25... Bxg2 {[%clk 0:01:16.7]} 26. Rg1 {[%clk 0:00:04.7]} 26... Bf3
{[%clk 0:00:58.8]} 27. Rd3 {[%clk 0:00:01.6]} 27... Nxc4 {[%clk 0:00:54.4]} 28.
Nxc4 {[%clk 0:00:02.2]} 28... Be2 {[%clk 0:00:52.9]} 29. Rd4 {[%clk 0:00:01.8]}
29... Rfc8 {[%clk 0:00:43.3]} 30. Nd6 {[%clk 0:00:01.8]} 30... Rc5 {[%clk
0:00:43]} 31. Kb2 {[%clk 0:00:02.4]} 31... Rxe5 {[%clk 0:00:42.5]} 32. c4 {[%clk
0:00:02.5]} 32... Bf3 {[%clk 0:00:39.5]} 33. Rd2 {[%clk 0:00:02.1]} 33... g5
{[%clk 0:00:33]} 34. b4 {[%clk 0:00:02.3]} 34... g4 {[%clk 0:00:31]} 35. Rd3
{[%clk 0:00:02.5]} 35... Kf8 {[%clk 0:00:30.2]} 36. Kc3 {[%clk 0:00:02.6]} 36...
f5 {[%clk 0:00:29.2]} 37. c5 {[%clk 0:00:02.8]} 37... Ke7 {[%clk 0:00:27.2]} 38.
Nc4 {[%clk 0:00:02.9]} 38... Be2 {[%clk 0:00:25.4]} 39. Nxe5 {[%clk 0:00:02.2]}
39... Bxd3 {[%clk 0:00:18]} 40. Nxd3 {[%clk 0:00:02.5]} 40... Kf6 {[%clk
0:00:18]} 41. Re1 {[%clk 0:00:02.7]} 41... Rd8 {[%clk 0:00:13.6]} 42. Kc4 {[%clk
0:00:03.3]} 42... h5 {[%clk 0:00:12.6]} 43. a4 {[%clk 0:00:03.8]} 43... h4
{[%clk 0:00:12.7]} 44. b5 {[%clk 0:00:04.3]} 44... e5 {[%clk 0:00:07.7]} 45.
Nxe5 {[%clk 0:00:03.7]} 45... axb5+ {[%clk 0:00:06.7]} 46. axb5 {[%clk
0:00:03.3]} 46... h3 {[%clk 0:00:03.9]} 47. Nd3 {[%clk 0:00:02.8]} 47... Kg5
{[%clk 0:00:02.9]} 48. Ne5 {[%clk 0:00:03]} 48... f4 {[%clk 0:00:02.8]} 49. Nf7+
{[%clk 0:00:03.4]} 49... Kh4 {[%clk 0:00:02.1]} 50. Nd6 {[%clk 0:00:04.1]} 50...
g3 {[%clk 0:00:02.2]} 51. hxg3+ {[%clk 0:00:04.4]} 51... fxg3 {[%clk 0:00:02.7]}
52. Nf5+ {[%clk 0:00:04.9]} 52... Kg4 {[%clk 0:00:03]} 53. Nxg3 {[%clk
0:00:04.9]} 53... Kxg3 {[%clk 0:00:03.4]} 54. Re3+ {[%clk 0:00:05.4]} 54... Kg2
{[%clk 0:00:03.5]} 55. Rxh3 {[%clk 0:00:05.8]} 55... Kxh3 {[%clk 0:00:03.9]} 56.
b6 {[%clk 0:00:06.4]} 56... Kg4 {[%clk 0:00:04.1]} 57. c6 {[%clk 0:00:06.1]}
57... Kf5 {[%clk 0:00:04.4]} 58. c7 {[%clk 0:00:05.8]} 58... Rc8 {[%clk
0:00:04.9]} 59. Kd5 {[%clk 0:00:06.3]} 59... Rh8 {[%clk 0:00:02.7]} 60. b7
{[%clk 0:00:05.9]} 60... Kf6 {[%clk 0:00:02.2]} 61. c8=Q {[%clk 0:00:06.1]}
61... Rh5+ {[%clk 0:00:03.1]} 62. Kc6 {[%clk 0:00:05.4]} 62... Re5 {[%clk
0:00:03.2]} 63. Qd8+ {[%clk 0:00:05.8]} 63... Kf5 {[%clk 0:00:03.6]} 64. b8=Q
{[%clk 0:00:06.2]} 64... Re6+ {[%clk 0:00:03.9]} 65. Qbd6 {[%clk 0:00:05.9]}
65... Re4 {[%clk 0:00:03.5]} 66. Q8f8+ {[%clk 0:00:05.5]} 66... Kg4 {[%clk
0:00:03.7]} 67. Qg6+ {[%clk 0:00:05.4]} 67... Kh4 {[%clk 0:00:03.7]} 68. Qf2+
{[%clk 0:00:05.3]} 68... Kh3 {[%clk 0:00:03.6]} 69. Qfg3# {[%clk 0:00:05.8]} 1-0